bitfinex/quotes_ETHUSD_20241122
["timestamp","ask_amount","ask_price","bid_price","bid_amount"]
[1732267441402,0.03705291,3374.2,3373.7,0.2955]
[1732267441818,0.7854,3374.1,3373.7,0.2955]
[1732267442306,0.7854,3374.1,3373.8,0.2955]
[1732267443332,0.7854,3374.1,3373.3,0.2955]
[1732267444242,0.7854,3374.1,3373.3,0.29906099]
[1732267444556,0.7854,3374.1,3373.5,0.2955]
[1732267444914,0.4899,3374.1,3373.5,0.2955]
[1732267445530,0.4899,3374.1,3373.3,0.2955]
[1732267445936,0.48718907,3374.1,3373.3,0.2955]
[1732267447798,0.55,3375.3,3373.5,0.2955]
[1732267448026,0.55,3375.1,3374.0,0.2955]
[1732267448193,0.55,3374.9,3374.0,0.2955]
[1732267448421,0.03705059,3374.8,3374.0,0.2955]
[1732267448621,0.03704832,3375.2,3374.2,0.2955]
[1732267448858,0.8221,3375.1,3374.2,0.2955]
[1732267449042,0.8221,3374.9,3374.2,0.2955]
[1732267449235,0.8221,3374.7,3374.2,0.2955]
[1732267449418,0.8221,3374.5,3374.2,0.2955]
[1732267449625,0.5870524,3374.4,3373.5,0.2955]
[1732267450327,0.8049,3374.3,3373.5,0.2955]
[1732267450524,0.8049,3374.3,3373.2,0.58763419]
[1732267450525,0.03705357,3374.2,3373.3,0.2955]
[1732267450826,0.55,3374.0,3373.3,0.2955]
[1732267451159,0.8049,3373.8,3373.3,0.2955]
[1732267451368,0.03705769,3373.7,3373.3,0.2955]
[1732267451664,0.03705769,3373.7,3373.6,0.2955]
[1732267451665,0.58705769,3373.7,3373.6,0.2955]
[1732267451824,1.36125769,3373.7,3373.6,0.2955]
[1732267452371,1.3242,3373.7,3373.6,0.2955]
[1732267458842,0.7742,3373.7,3373.6,0.2955]
[1732267459182,0.7742,3373.7,3373.5,0.36252634]
[1732267459483,0.7742,3373.7,3373.6,0.2955]
[1732267459840,0.7742,3373.7,3373.5,0.06712634]
[1732267460043,0.03705676,3373.6,3373.5,0.06712634]
[1732267460279,0.03705676,3373.6,3373.5,0.36262634]
[1732267460786,0.7742,3373.7,3373.5,0.36262634]
[1732267461283,0.03705741,3373.6,3373.5,0.36262634]
[1732267461940,0.58705741,3373.6,3373.5,0.36262634]
[1732267463059,0.55,3373.6,3373.5,0.36262634]
[1732267463669,0.58706091,3373.6,3373.5,0.36262634]
[1732267463979,0.58705838,3373.6,3373.5,0.36262634]
[1732267464987,0.03705838,3373.6,3372.7,0.2955]
[1732267465192,9.27051525,3370.0,3369.8,1.74331789]
[1732267465395,0.841,3373.1,3369.9,1.27390725]
[1732267465686,0.841,3373.1,3370.3,0.55]
[1732267465687,0.03706342,3373.0,3370.3,0.55]
[1732267465892,0.03706342,3373.0,3370.5,0.55]
[1732267466070,0.03706342,3373.0,3371.0,0.2955]
[1732267466071,0.01,3372.9,3371.0,0.2955]
[1732267466261,0.01,3372.9,3370.5,0.91199852]
[1732267466262,0.01,3372.9,3371.2,0.2955]
[1732267466487,0.04706712,3372.9,3371.2,0.2955]
[1732267466701,0.01,3372.8,3371.2,0.2955]
[1732267467259,0.04706863,3372.8,3371.3,0.2955]
[1732267467490,0.01,3372.5,3371.5,0.2955]
[1732267467793,0.02,3372.5,3371.5,0.2955]
[1732267468363,0.02,3372.5,3371.6,0.2955]
[1732267468784,0.02,3372.5,3369.9,0.8455]
[1732267468785,48.20585636,3370.0,3369.9,0.8455]
[1732267469101,35.32836337,3370.0,3369.9,6.72806595]
[1732267469262,24.29569624,3370.0,3369.9,6.72806595]
[1732267469462,13.94222887,3370.0,3369.9,6.39623397]
[1732267469662,10.35346737,3370.0,3369.9,6.39623397]
[1732267469998,3.5887615,3370.0,3369.9,1.86579359]
[1732267470303,0.8119,3372.1,3369.9,0.2955]
[1732267470597,0.0470754,3372.0,3369.9,0.2955]
[1732267471208,0.02,3371.7,3369.9,0.2955]
[1732267471413,0.01,3371.7,3369.9,0.2955]
[1732267471680,0.85898003,3371.8,3369.9,0.2955]
[1732267471915,0.01,3371.7,3369.9,0.2955]
[1732267472207,0.01,3371.7,3369.8,0.2955]
[1732267472408,0.01,3371.7,3370.0,0.2955]
[1732267472787,0.85898007,3371.8,3370.0,0.2955]
[1732267473112,49.7045,3370.0,3369.9,0.8455]
[1732267473280,49.7045,3370.0,3369.9,0.2955]
[1732267474815,49.1135,3370.0,3369.8,2.7044]
[1732267475000,48.818,3370.0,3369.8,2.7044]
[1732267475409,47.9315,3370.0,3369.8,0.55]
[1732267475591,47.9315,3370.0,3369.9,0.2955]
[1732267475789,41.9229,3370.0,3369.9,0.2955]
[1732267475994,40.5069,3370.0,3369.9,0.2955]
[1732267476291,39.84430001,3370.0,3369.9,0.2955]
[1732267476510,39.84430001,3370.0,3369.8,0.55]
[1732267476511,39.25330001,3370.0,3369.8,0.55]
[1732267476811,38.95780001,3370.0,3369.9,0.2955]
[1732267478120,38.36680001,3370.0,3369.8,4.26026705]
[1732267478323,38.07130001,3370.0,3369.9,0.2955]
[1732267478685,37.77580001,3370.0,3369.8,3.71026705]
[1732267479216,37.77580001,3370.0,3369.9,0.2955]
[1732267484514,37.77527872,3370.0,3369.9,0.2955]
[1732267485020,37.47977872,3370.0,3369.9,0.2955]
[1732267489211,35.28721302,3370.0,3369.9,0.2955]
[1732267489415,33.75563522,3370.0,3369.5,0.2955]
[1732267489646,33.10183522,3370.0,3369.7,0.2955]
[1732267489813,33.10183522,3370.0,3369.6,0.55]
[1732267489814,31.70833522,3370.0,3369.9,0.2955]
[1732267490101,28.60213523,3370.0,3369.9,0.6478977]
[1732267490325,27.79533523,3370.0,3369.9,0.6478977]
[1732267490513,27.48483523,3370.0,3369.9,0.6478977]
[1732267490728,25.20773524,3370.0,3369.9,0.6478977]
[1732267491645,23.42123524,3370.0,3369.9,0.6478977]
[1732267492017,21.81693524,3370.0,3369.9,0.6478977]
[1732267492317,18.50834225,3370.0,3369.9,0.6478977]
[1732267492516,18.16793746,3370.0,3369.9,1.36646187]
[1732267492830,17.40193746,3370.0,3369.9,0.6478977]
[1732267493610,17.40193746,3370.0,3369.9,1.35568188]
[1732267494229,17.40193746,3370.0,3369.9,0.6478977]
[1732267494429,17.40193746,3370.0,3369.9,0.2955]
[1732267495049,17.40193746,3370.0,3368.0,6.534166]
[1732267495342,17.40193746,3370.0,3368.0,0.2955]
[1732267495637,0.03709464,3369.9,3368.0,0.2955]
[1732267496306,17.40193746,3370.0,3368.0,0.2955]
[1732267496307,17.40193746,3370.0,3368.0,1.03282647]
[1732267496504,0.7602,3369.7,3368.0,0.2955]
[1732267496705,0.7602,3369.5,3368.0,0.2955]
[1732267496930,0.8014,3369.3,3368.0,0.2955]
[1732267497181,0.03710448,3369.2,3368.0,0.2955]
[1732267498154,0.01,3368.8,3366.5,5.35]
[1732267498459,0.7683,3368.7,3366.6,0.2955]
[1732267498632,0.85161369,3368.6,3366.6,0.2955]
[1732267499260,0.7893,3368.4,3367.1,0.2955]
[1732267499721,0.7893,3368.2,3366.4,1.23426685]
[1732267499923,0.7893,3368.2,3366.5,1.52959837]
[1732267500232,0.7893,3368.2,3366.6,2.54933062]
[1732267500556,0.7893,3368.2,3366.4,1.23426685]
[1732267500557,0.776,3367.9,3366.4,0.70909686]
[1732267500854,0.776,3367.7,3366.0,1.23426685]
[1732267501062,0.7897,3367.5,3365.8,1.23426685]
[1732267501257,0.01,3367.3,3365.6,1.52976685]
[1732267501466,0.7897,3367.2,3365.7,2.55001655]
[1732267501621,0.03712889,3367.1,3365.1,1.85140027]
[1732267501823,0.03712889,3367.1,3365.2,2.5455701]
[1732267502064,0.03712889,3367.1,3365.3,2.5455701]
[1732267502267,0.03712889,3367.1,3365.1,4.62057046]
[1732267502268,0.7966,3366.7,3365.1,0.73271411]
[1732267502637,0.7966,3366.7,3364.9,0.1493139]
[1732267502825,0.7966,3366.7,3365.0,2.54115247]
[1732267503025,0.03713184,3366.6,3365.1,1.01648509]
[1732267503268,0.03713184,3366.6,3364.9,0.1493139]
[1732267503558,0.7966,3366.7,3365.0,2.53754182]
[1732267503759,0.7966,3366.7,3365.1,2.53754182]
[1732267503971,0.03713185,3366.6,3365.0,0.55]
[1732267504135,0.03713185,3366.6,3365.2,3.0]
[1732267504337,0.03713185,3366.6,3365.0,0.55]
[1732267504536,0.03713185,3366.6,3365.1,2.53453275]
[1732267504750,0.7966,3366.7,3365.0,0.55]
[1732267504751,0.7966,3366.7,3365.2,1.0138131]
[1732267504961,0.7966,3366.7,3365.0,0.55]
[1732267504962,0.03713186,3366.6,3365.0,0.55]
[1732267505146,0.03713186,3366.6,3365.1,2.53447158]
[1732267505665,0.02599531,3366.6,3365.2,0.8269055]
[1732267505863,0.02599531,3367.5,3365.2,0.8269055]
[1732267506066,0.55,3367.3,3365.2,0.8269055]
[1732267506237,0.02599531,3367.2,3365.2,0.8269055]
[1732267506626,0.02599531,3367.2,3365.5,0.7658]
[1732267506627,8.78,3367.2,3365.5,0.7658]
[1732267506835,8.78,3367.2,3365.7,3.0]
[1732267507034,8.78,3367.2,3365.8,2.55967253]
[1732267507328,8.78,3367.2,3365.9,5.52997281]
[1732267507531,3.7222064,3368.8,3366.0,0.02969974]
[1732267507834,6.4365809,3368.7,3365.6,0.02970273]
[1732267508025,0.56,3368.3,3365.2,2.678303]
[1732267508225,0.55,3368.1,3365.2,0.82690273]
[1732267508429,0.801,3367.8,3365.1,0.71324477]
[1732267508739,0.55,3367.3,3364.9,0.9037139]
[1732267508939,0.801,3366.8,3364.9,0.72791262]
[1732267509242,0.8184,3366.0,3364.0,0.7544]
[1732267509441,0.8184,3366.4,3364.1,1.51604808]
[1732267509643,0.55,3366.1,3364.1,0.02972057]
[1732267509850,1.1235,3365.7,3364.1,0.02972057]
[1732267510028,1.1235,3365.5,3364.1,0.02972057]
[1732267510536,1.1567,3365.3,3364.0,0.78412031]
[1732267510944,1.2147,3365.1,3363.4,0.00382536]
[1732267511275,1.2147,3364.8,3363.4,0.00382536]
[1732267511445,0.55,3364.9,3363.4,0.00382536]
[1732267511446,1.1901,3364.5,3363.4,0.00382536]
[1732267511644,0.03716049,3364.8,3363.4,0.00382536]
[1732267511843,0.55,3364.7,3363.4,0.00382536]
[1732267512206,0.03716009,3364.6,3363.4,0.00382536]
[1732267512379,0.55,3364.5,3363.4,0.00382536]
[1732267512532,0.03716144,3364.4,3363.4,0.00382536]
[1732267512740,0.55,3365.7,3363.4,0.00382536]
[1732267512949,0.55,3365.5,3363.4,0.00382536]
[1732267513265,0.55,3365.3,3363.4,0.00382536]
[1732267513568,0.03716143,3365.4,3363.4,0.00382536]
[1732267513569,0.55,3365.1,3363.4,0.00382536]
[1732267513778,0.55,3364.9,3363.4,0.00382536]
[1732267514074,0.55,3364.7,3363.4,0.00382536]
[1732267514276,0.03716141,3364.6,3363.4,0.00382536]
[1732267514433,0.55,3364.5,3363.4,0.00382536]
[1732267514767,1.161,3364.3,3363.4,0.00382536]
[1732267514966,1.161,3364.3,3362.7,0.02604678]
[1732267514967,1.1802,3364.1,3362.2,1.2247]
[1732267515131,1.1802,3363.7,3361.7,0.2955]
[1732267515334,0.55,3363.5,3361.4,0.00305173]
[1732267515546,1.1784,3363.1,3361.4,0.00305173]
[1732267515832,0.01,3364.1,3361.4,0.00305173]
[1732267515833,1.7284,3362.7,3361.4,0.00305173]
[1732267516042,1.1784,3362.7,3361.4,0.00305173]
[1732267516355,0.03717696,3362.6,3361.4,0.00305173]
[1732267516551,0.03718107,3362.6,3361.4,0.00305173]
[1732267516988,1.1784,3362.7,3361.4,0.00305173]
[1732267517215,0.55,3362.6,3361.4,0.00305173]
[1732267517361,1.37744,3362.5,3361.4,0.00305173]
[1732267517557,0.55,3362.3,3360.4,1.51453763]
[1732267517774,1.1359,3362.0,3360.4,1.51453763]
[1732267519251,1.1359,3362.0,3360.5,0.2955]
[1732267520492,1.1799,3361.8,3360.5,0.2955]
[1732267520783,1.1799,3361.8,3360.4,0.01383763]
[1732267520956,0.03719029,3361.7,3360.4,0.01383763]
[1732267521296,1.1296,3361.4,3359.0,1.2343]
[1732267521446,0.01,3362.1,3359.0,1.2343]
[1732267521447,1.1296,3361.2,3359.0,1.2343]
[1732267521646,1.1296,3360.8,3359.1,0.2955]
[1732267521881,1.1519,3361.8,3359.2,0.02976263]
[1732267522080,1.1519,3361.6,3359.1,0.2955]
[1732267522382,1.1519,3361.4,3359.2,0.029764]
[1732267522594,1.1519,3361.2,3358.7,1.147]
[1732267522885,0.03712378,3361.1,3358.8,0.3252567]
[1732267523060,0.01,3362.7,3359.0,0.2955]
[1732267523061,0.03712378,3362.6,3359.0,0.2955]
[1732267523265,0.01,3362.2,3359.1,0.02975838]
[1732267523502,0.03712378,3362.1,3359.1,0.02975838]
[1732267523695,4.53014473,3362.1,3358.9,0.2955]
[1732267524083,0.55,3362.0,3358.9,0.2955]
[1732267524285,0.55,3361.8,3358.9,0.2955]
[1732267524508,0.03720446,3361.7,3358.9,0.2955]
[1732267524812,0.55,3361.6,3358.8,0.55]
[1732267525114,0.55,3361.4,3358.8,0.55]
[1732267525274,0.55,3361.2,3358.8,0.55]
[1732267525478,0.03720444,3361.1,3358.8,0.55]
[1732267525681,1.1808,3361.0,3358.8,0.55]
[1732267525915,1.211,3360.8,3358.8,0.55]
[1732267526112,1.211,3360.6,3358.8,0.55]
[1732267526297,0.03720443,3360.5,3358.7,1.127]
[1732267526613,0.03720443,3360.5,3358.6,0.00395888]
[1732267526614,1.211,3360.4,3358.6,0.00395888]
[1732267526913,1.19230961,3360.3,3358.6,0.00395888]
[1732267527252,1.19230961,3360.3,3358.4,0.72152527]
[1732267527426,1.1551,3360.2,3358.1,0.1493139]
[1732267527620,1.1551,3360.0,3358.1,0.1493139]
[1732267527778,0.03721475,3359.9,3358.1,0.1493139]
[1732267527983,1.1551,3359.8,3358.1,0.1493139]
[1732267528208,0.55,3360.7,3358.1,0.1493139]
[1732267528514,0.55,3360.5,3358.1,0.1493139]
[1732267528730,0.55,3360.5,3359.4,3.0]
[1732267528731,0.0296669,3360.4,3359.4,3.0]
[1732267529097,0.0296669,3360.4,3358.1,0.17908401]
[1732267529292,0.0296669,3360.4,3359.7,3.0]
[1732267529497,0.0296669,3360.4,3359.8,3.0]
[1732267529789,0.0296669,3360.4,3358.2,0.02977305]
[1732267529790,0.0296669,3360.4,3358.2,0.57977305]
[1732267530222,0.0296669,3360.4,3358.2,0.02977305]
[1732267530685,0.0296669,3360.4,3358.1,0.02168695]
[1732267530883,0.0296669,3360.4,3358.2,0.0149861]
[1732267531093,0.55,3360.2,3358.2,0.0149861]
[1732267531333,1.2009,3360.0,3358.2,0.0149861]
[1732267532391,1.23841392,3359.9,3359.8,3.0]
[1732267532635,1.2012,3359.9,3358.1,0.7678901]
[1732267532832,1.2012,3359.9,3358.1,1.0633901]
[1732267533134,1.2012,3359.9,3358.4,0.8455]
[1732267533296,0.03720923,3361.2,3360.6,3.0]
[1732267533491,0.03720923,3361.2,3359.2,1.2219]
[1732267533492,0.0372,3362.1,3359.3,0.56495199]
[1732267533694,0.0372,3362.1,3361.1,3.0]
[1732267533922,0.0372,3362.1,3359.3,0.56495199]
[1732267534130,0.0372,3362.1,3361.1,3.0]
[1732267534332,0.0372,3362.1,3359.3,0.56495199]
[1732267534539,0.0571933,3362.8,3359.3,0.56495199]
[1732267534844,0.48411178,3362.7,3359.3,0.86045199]
[1732267535008,0.48411178,3362.7,3359.3,0.87525767]
[1732267535009,0.32130887,3362.7,3359.3,0.87525767]
[1732267535197,0.32130887,3362.7,3359.3,0.32525767]
[1732267535198,0.02224286,3362.6,3359.3,0.32525767]
[1732267535398,0.01,3362.1,3359.3,0.2955]
[1732267535599,0.02224286,3362.0,3359.3,0.2955]
[1732267535825,0.45252638,3361.9,3359.4,0.2955]
[1732267536042,0.02224286,3361.8,3359.4,0.2955]
[1732267536240,0.55,3361.6,3359.4,0.2955]
[1732267536535,0.55,3361.4,3360.8,0.2955]
[1732267536743,0.55,3361.2,3360.8,0.2955]
[1732267536909,0.75424286,3361.3,3360.8,0.2955]
[1732267536910,0.732,3361.0,3360.8,0.2955]
[1732267537110,0.02224286,3360.9,3360.8,0.2955]
[1732267537323,0.02224286,3360.9,3359.7,0.2955]
[1732267537744,0.732,3361.0,3360.9,3.2955]
[1732267538100,0.732,3361.0,3360.9,0.2955]
[1732267538807,0.732,3361.0,3359.7,0.32525607]
[1732267539337,0.732,3361.0,3359.9,0.2955]
[1732267540234,0.02224286,3360.9,3360.0,0.2955]
[1732267540950,1.2601,3360.8,3360.0,0.2955]
[1732267541101,1.2601,3360.8,3359.2,1.3789]
[1732267541102,0.02224286,3360.7,3359.3,0.2955]
[1732267541297,0.02224286,3360.7,3359.5,0.2955]
[1732267541298,1.2601,3360.6,3359.5,0.2955]
[1732267542310,1.2601,3360.6,3359.3,0.3252633]
[1732267542545,1.2601,3360.6,3359.5,0.2955]
[1732267542703,1.2601,3360.6,3359.6,0.02975956]
[1732267543342,0.02224286,3362.3,3361.2,0.2955]
[1732267543543,4.50302095,3362.8,3361.2,0.2955]
[1732267543544,0.57224286,3362.7,3361.2,0.2955]
[1732267543709,1.02354495,3362.7,3361.2,0.2955]
[1732267544240,0.47354495,3362.7,3361.2,0.2955]
[1732267544426,0.47354495,3362.7,3360.0,0.3252562]
[1732267544609,0.49665659,3362.6,3360.2,0.2955]
[1732267544805,0.02224286,3362.5,3360.2,0.2955]
[1732267545347,0.02224286,3362.5,3361.4,0.2955]
[1732267545511,0.57224286,3362.5,3361.4,0.2955]
[1732267545947,4.49302095,3362.4,3361.4,0.2955]
[1732267546163,0.55,3362.2,3360.0,0.2955]
[1732267546457,0.02224286,3362.1,3360.0,0.2955]
[1732267546812,0.55,3361.9,3360.0,0.2955]
[1732267547019,0.55,3361.7,3360.0,0.2955]
[1732267547264,0.55,3361.5,3359.2,0.2955]
[1732267547411,0.02224286,3361.4,3359.2,0.2955]
[1732267548158,0.02224286,3361.5,3359.2,0.2955]
[1732267548860,0.02224286,3361.5,3359.3,0.02976425]
[1732267549019,0.02224286,3361.5,3359.5,0.2955]
[1732267549218,0.2659,3361.4,3359.2,0.2955]
[1732267549456,0.2659,3361.1,3359.2,0.2955]
[1732267549668,0.2659,3361.1,3359.3,0.02239766]
[1732267549669,0.58720529,3361.0,3359.3,0.02239766]
[1732267549840,0.50217902,3361.7,3359.3,0.02239766]
[1732267550446,0.50217902,3361.7,3359.5,0.8455]
[1732267550656,4.49302095,3362.4,3359.6,0.02975935]
[1732267550860,4.49302095,3362.4,3359.5,0.87525935]
[1732267551061,0.49896775,3362.3,3359.7,0.2955]
[1732267552066,4.49302095,3362.0,3359.6,0.2955]
[1732267552357,1.0543021,3361.9,3359.6,0.2955]
[1732267552927,1.0543021,3361.9,3359.5,0.2955]
[1732267554560,1.0543021,3361.9,3359.7,0.2955]
[1732267555566,1.0543021,3361.9,3359.5,3.2955]
[1732267555734,0.55,3361.7,3359.7,0.2955]
[1732267556339,0.55,3361.7,3359.9,0.2955]
[1732267556929,0.55,3361.7,3360.1,0.2955]
[1732267557754,0.55,3361.7,3360.3,0.2955]
[1732267558061,0.55473231,3361.8,3360.5,3.27957548]
[1732267558223,0.55473231,3361.8,3360.8,0.19995288]
[1732267558430,5.4876045,3362.0,3360.8,0.19995288]
[1732267558927,5.4876045,3362.0,3361.0,0.19995288]
[1732267559131,5.4876045,3361.9,3361.0,0.19995288]
[1732267559447,0.54876045,3361.8,3361.0,0.19995288]
[1732267559650,5.4876045,3362.2,3361.0,0.19995288]
[1732267559651,0.55,3362.1,3361.0,0.19995288]
[1732267560031,5.4876045,3362.0,3360.9,0.19995288]
[1732267560363,5.4876045,3362.0,3361.1,0.19995288]
[1732267560364,0.55,3361.8,3361.1,0.19995288]
[1732267561382,0.55,3361.8,3360.8,0.19995288]
[1732267561678,0.55,3361.6,3361.0,0.19995288]
[1732267561872,0.55,3361.4,3361.0,0.19995288]
[1732267562540,0.55,3361.4,3360.1,1.3983]
[1732267562541,0.55,3361.4,3361.1,0.19995288]
[1732267563239,0.1919,3361.0,3359.7,1.20484982]
[1732267563438,0.55,3360.7,3359.4,1.20484982]
[1732267563674,0.55,3360.7,3359.2,1.81898227]
[1732267563675,0.55,3360.7,3359.5,2.56476273]
[1732267563974,0.55,3360.7,3359.7,0.2955]
[1732267564184,0.55,3360.7,3359.9,0.2955]
[1732267564365,0.1919,3360.8,3359.5,1.20484982]
[1732267564675,0.55,3360.7,3359.2,4.20484982]
[1732267564887,0.55,3360.5,3359.3,4.53930204]
[1732267565049,0.55,3360.5,3359.3,0.2955]
[1732267565244,0.55,3360.3,3359.3,0.2955]
[1732267566373,0.55,3360.3,3359.0,4.5866]
[1732267566576,0.55,3360.3,3359.2,0.2955]
[1732267567166,0.5499998,3360.3,3359.2,0.2955]
[1732267567350,0.1919,3361.1,3359.4,0.2955]
[1732267567558,0.1919,3361.1,3359.8,0.2955]
[1732267568859,6.08921569,3361.3,3359.4,0.2955]
[1732267568860,0.1919,3360.4,3359.4,0.2955]
[1732267569854,0.55,3360.3,3359.0,0.2955]
[1732267570054,0.55,3360.1,3359.0,0.2955]
[1732267570660,0.3517,3360.2,3359.0,0.2955]
[1732267570857,0.3517,3361.1,3359.1,1.7585]
[1732267571185,0.3517,3360.9,3359.3,0.2955]
[1732267571365,0.3517,3360.9,3359.5,0.2955]
[1732267571546,1.06895076,3360.9,3359.5,0.2955]
[1732267571746,1.06895076,3360.9,3359.7,0.2955]
[1732267571950,0.3517,3360.8,3359.7,0.2955]
[1732267572388,0.55,3360.7,3359.7,0.2955]
[1732267572691,0.9017,3360.5,3359.7,0.2955]
[1732267572989,0.3517,3360.5,3359.2,0.2955]
[1732267573199,0.55,3360.4,3359.2,0.2955]
[1732267573704,0.3517,3360.7,3359.2,0.2955]
[1732267573988,0.3517,3360.7,3358.1,0.02168695]
[1732267573989,0.3517,3360.7,3358.4,0.2955]
[1732267574144,0.3517,3360.6,3358.4,0.2955]
[1732267574341,0.3517,3360.4,3358.6,0.2955]
[1732267575356,0.3517,3360.4,3358.4,0.2955]
[1732267575683,0.55,3360.1,3358.4,0.2955]
[1732267576604,0.55,3360.1,3359.5,0.2955]
[1732267576784,0.3517,3359.8,3359.5,0.2955]
[1732267577108,0.3517,3359.6,3357.1,1.4698]
[1732267577398,0.6254,3359.2,3358.2,0.2955]
[1732267577604,0.6254,3359.2,3357.2,0.2955]
[1732267577796,0.6254,3359.2,3357.3,0.02978102]
[1732267578584,0.6254,3359.2,3358.8,0.2955]
[1732267579097,0.6254,3359.2,3356.9,0.32527812]
[1732267579098,0.55,3359.1,3356.9,0.32527812]
[1732267579260,0.55,3359.1,3356.0,0.55]
[1732267579261,0.6254,3358.9,3356.0,0.55]
[1732267579459,0.54731788,3358.9,3356.1,1.4030831]
[1732267579663,0.54731788,3358.9,3356.3,1.3733]
[1732267579881,0.54731788,3358.9,3356.7,1.3733]
[1732267580093,0.54731788,3358.9,3356.8,0.2955]
[1732267580289,0.54731788,3358.9,3357.0,0.2955]
[1732267580477,0.54731788,3358.9,3358.3,3.0]
[1732267580680,0.55,3359.1,3357.1,0.02978103]
[1732267580880,0.55,3359.1,3357.2,0.2955]
[1732267581097,0.55,3359.4,3357.2,0.2955]
[1732267582675,0.5474,3359.1,3357.2,0.2955]
[1732267582875,0.5474,3359.1,3357.3,1.6654]
[1732267583086,0.5474,3359.1,3357.5,0.2955]
[1732267586068,0.5474,3358.9,3357.5,0.2955]
[1732267586493,0.5474,3358.7,3357.6,0.2955]
[1732267586675,0.55,3358.6,3357.6,0.2955]
[1732267586888,0.5474,3358.5,3357.6,0.2955]
[1732267587405,0.5474,3358.5,3356.8,0.2955]
[1732267587605,0.5474,3358.5,3356.8,0.46872]
[1732267587769,0.55,3358.2,3356.8,0.46872]
[1732267587974,0.55,3358.4,3356.8,0.46872]
[1732267588313,0.5474,3358.2,3356.8,0.46872]
[1732267588616,0.5474,3358.2,3356.5,0.2955]
[1732267590278,0.5474,3358.2,3356.2,0.2955]
[1732267590497,0.5474,3358.2,3357.8,0.2955]
[1732267590980,5.4876045,3359.0,3357.8,0.2955]
[1732267591183,6.58376495,3358.9,3357.8,0.2955]
[1732267591500,6.0350045,3358.9,3357.4,0.2955]
[1732267591871,5.4876045,3358.8,3357.4,0.32528402]
[1732267592070,5.4876045,3358.8,3357.6,0.2955]
[1732267592327,5.4876045,3358.8,3357.8,0.2955]
[1732267592505,0.5474,3358.9,3357.8,0.2955]
[1732267593101,0.5474,3358.9,3358.1,0.2955]
[1732267593696,0.5474,3360.0,3358.6,0.2955]
[1732267593872,5.4876045,3359.9,3358.6,0.2955]
[1732267594297,5.4876045,3359.9,3358.5,0.2955]
[1732267594683,5.4876045,3359.9,3358.9,0.2955]
[1732267594876,0.5476,3359.8,3358.9,0.2955]
[1732267595189,6.09112495,3359.7,3358.9,0.2955]
[1732267595381,5.4876045,3359.7,3358.9,0.2955]
[1732267595612,5.4876045,3359.6,3359.3,0.2955]
[1732267595787,0.5476,3359.8,3359.3,0.2955]
[1732267595788,5.4876045,3359.5,3359.3,0.2955]
[1732267596208,4.49302095,3361.0,3359.3,0.2955]
[1732267596209,0.5476,3360.1,3359.3,0.2955]
[1732267596517,0.5476,3360.1,3357.8,0.02977086]
[1732267596518,0.5476,3360.1,3357.8,0.32527086]
[1732267596814,5.4876045,3360.0,3358.0,0.2955]
[1732267596984,6.09112495,3360.0,3358.1,0.02976958]
[1732267597372,6.09112495,3360.0,3358.5,0.2955]
[1732267597579,5.4876045,3359.9,3359.5,1.652]
[1732267597888,5.4876045,3360.4,3359.5,1.652]
[1732267598407,5.4876045,3360.4,3359.9,0.2955]
[1732267598641,4.49302095,3361.8,3359.9,0.2955]
[1732267598642,0.5476,3360.9,3359.9,0.2955]
[1732267598838,5.4876045,3360.8,3359.9,3.2955]
[1732267599002,5.4876045,3360.8,3359.9,0.2955]
[1732267599332,5.4876045,3360.8,3360.1,0.2955]
[1732267599631,0.60352045,3360.7,3360.1,0.2955]
[1732267599835,0.60352045,3360.7,3360.0,3.0]
[1732267600402,6.67861731,3360.6,3358.2,1.363]
[1732267600601,5.4876045,3360.5,3358.4,1.363]
[1732267600830,0.03711281,3360.4,3358.4,1.363]
[1732267601136,0.73424898,3360.3,3358.4,1.363]
[1732267601341,0.03711281,3360.2,3358.4,1.363]
[1732267602039,0.6039,3360.1,3358.4,1.363]
[1732267602215,0.03711281,3360.0,3358.4,1.363]
[1732267603143,0.03711281,3360.0,3359.4,3.0]
[1732267603304,5.4876045,3359.9,3359.1,1.3721]
[1732267603644,5.4876045,3359.9,3358.5,0.02976828]
[1732267603645,5.4876045,3359.8,3359.5,1.3721]
[1732267604019,0.03711281,3359.7,3359.5,1.3721]
[1732267604248,5.4876045,3359.8,3359.5,1.3721]
[1732267604741,0.01,3362.3,3359.5,1.3721]
[1732267604742,0.6039,3361.3,3359.5,1.3721]
[1732267604937,6.13757904,3361.2,3359.5,1.3721]
[1732267605145,5.52471731,3361.2,3360.0,3.0]
[1732267605503,5.52471731,3361.2,3360.4,1.4077]
[1732267605723,6.10046623,3361.1,3360.4,1.4077]
[1732267606143,6.13757904,3361.1,3360.4,1.4077]
[1732267606507,6.13757904,3361.1,3358.8,0.2955]
[1732267606508,0.6039,3361.0,3359.5,1.4396]
[1732267606857,6.19886521,3360.9,3359.5,1.4396]
[1732267607020,5.52471731,3360.9,3359.5,1.4396]
[1732267609322,5.52471731,3360.9,3359.5,1.1439]
[1732267609526,5.4876045,3360.9,3359.6,0.02976212]
[1732267609757,0.03711281,3360.8,3359.2,0.02975832]
[1732267609912,6.09675495,3360.9,3359.1,0.27343653]
[1732267610249,0.63890877,3360.8,3359.3,0.18518265]
[1732267610409,1.51225133,3360.7,3359.3,0.1484102]
[1732267610609,0.02975832,3360.6,3359.3,0.14105571]
[1732267610912,0.02975817,3360.6,3359.3,0.14105571]
[1732267611112,0.15420095,3360.5,3358.2,0.04544734]
[1732267611346,5.51736252,3360.4,3358.3,0.0297659]
[1732267611531,0.56715635,3360.3,3358.3,0.0297659]
[1732267612365,0.56715635,3360.3,3360.2,0.04544734]
[1732267612517,5.4876045,3360.3,3360.2,0.04544734]
[1732267613350,5.4876045,3360.3,3359.3,1.28708639]
[1732267613552,5.51736252,3360.2,3359.3,1.24163905]
[1732267613765,0.55173625,3360.1,3359.3,1.24163905]